bitfinex/quotes_BTCUSD_20241004
["timestamp","ask_amount","ask_price","bid_price","bid_amount"]
[1728005699691,0.40598468,61182.0,61181.0,0.0002]
[1728005699915,0.39198468,61182.0,61181.0,0.0002]
[1728005700375,0.43048,61182.0,61181.0,0.0002]
[1728005700833,0.53048,61182.0,61181.0,0.0002]
[1728005701559,0.51948,61182.0,61181.0,0.0002]
[1728005702020,0.52948,61182.0,61181.0,0.0002]
[1728005702484,0.51948,61182.0,61181.0,0.0002]
[1728005702733,0.53348,61182.0,61181.0,0.0002]
[1728005702990,0.56148,61182.0,61181.0,0.0002]
[1728005703480,0.54748,61182.0,61181.0,0.0002]
[1728005704537,0.71968,61182.0,61181.0,0.0002]
[1728005704765,0.71968,61182.0,61173.0,0.00203]
[1728005704766,0.58993534,61178.0,61173.0,0.00203]
[1728005705001,0.58993534,61178.0,61173.0,9e-07]
[1728005705002,0.475538,61174.0,61173.0,9e-07]
[1728005705245,0.63872471,61174.0,61173.0,9e-07]
[1728005705788,0.76215934,61169.0,61168.0,9e-07]
[1728005706027,1.13663407,61169.0,61168.0,9e-07]
[1728005707540,0.76217834,61162.0,61161.0,9e-07]
[1728005707771,0.92536505,61162.0,61161.0,9e-07]
[1728005708752,0.97346636,61162.0,61161.0,9e-07]
[1728005708977,0.96445307,61162.0,61161.0,9e-07]
[1728005709221,0.97845307,61162.0,61161.0,9e-07]
[1728005709713,0.62974342,61162.0,61161.0,9e-07]
[1728005709983,0.44068671,61162.0,61161.0,9e-07]
[1728005710206,0.36632602,61162.0,61161.0,9e-07]
[1728005711146,0.35232602,61162.0,61161.0,9e-07]
[1728005711612,0.36632602,61162.0,61161.0,9e-07]
[1728005711867,0.49301095,61162.0,61161.0,9e-07]
[1728005712094,0.47901095,61162.0,61161.0,9e-07]
[1728005712331,0.59301095,61162.0,61161.0,9e-07]
[1728005712602,0.61601095,61162.0,61161.0,9e-07]
[1728005712862,0.60388095,61162.0,61161.0,9e-07]
[1728005713118,0.61788095,61162.0,61161.0,9e-07]
[1728005713352,0.63288095,61162.0,61161.0,9e-07]
[1728005713573,0.68098226,61162.0,61161.0,9e-07]
[1728005714279,0.68098226,61162.0,61161.0,0.0010009]
[1728005714770,0.60888095,61162.0,61161.0,0.0010009]
[1728005714993,0.48032602,61162.0,61161.0,0.0010009]
[1728005715261,0.46819602,61162.0,61161.0,0.0010009]
[1728005715509,0.46819602,61162.0,61161.0,9e-07]
[1728005716258,0.46632602,61162.0,61161.0,9e-07]
[1728005716498,0.61445456,61162.0,61161.0,9e-07]
[1728005716736,0.60232456,61162.0,61161.0,9e-07]
[1728005716954,0.58881525,61162.0,61161.0,9e-07]
[1728005717408,0.58881525,61162.0,61161.0,0.0806009]
[1728005717409,0.34068671,61162.0,61161.0,0.0806009]
[1728005717654,0.32668671,61162.0,61161.0,0.0806009]
[1728005717888,0.17718671,61162.0,61161.0,0.0806009]
[1728005718115,0.34068671,61162.0,61161.0,0.0806009]
[1728005718356,0.32668671,61162.0,61161.0,0.0806009]
[1728005718596,0.43675288,61162.0,61161.0,0.0806009]
[1728005718836,0.45075288,61162.0,61161.0,0.0806009]
[1728005719059,0.43875288,61162.0,61161.0,9e-07]
[1728005719282,0.55075288,61162.0,61161.0,9e-07]
[1728005719503,0.56475288,61162.0,61161.0,0.0008209]
[1728005719716,0.54039288,61162.0,61161.0,0.0008209]
[1728005720404,0.57726288,61162.0,61161.0,0.0008209]
[1728005720636,0.55126288,61162.0,61161.0,0.0008209]
[1728005721103,0.56326288,61162.0,61161.0,0.0008209]
[1728005721551,0.55626288,61162.0,61161.0,0.0008209]
[1728005721768,0.57026288,61162.0,61161.0,0.0008209]
[1728005722002,0.59126288,61162.0,61161.0,0.0008209]
[1728005722224,0.61477632,61162.0,61161.0,0.0008209]
[1728005722458,0.61477632,61162.0,61161.0,9e-07]
[1728005722459,0.58026288,61162.0,61161.0,9e-07]
[1728005722698,0.75246288,61162.0,61161.0,9e-07]
[1728005723068,0.80097632,61162.0,61161.0,9e-07]
[1728005723296,0.84061942,61162.0,61161.0,9e-07]
[1728005723522,0.82661942,61162.0,61161.0,9e-07]
[1728005723771,0.84061942,61162.0,61161.0,9e-07]
[1728005724005,0.82661942,61162.0,61161.0,9e-07]
[1728005724504,0.84061942,61162.0,61161.0,9e-07]
[1728005724768,0.82661942,61162.0,61161.0,9e-07]
[1728005725003,0.60590598,61162.0,61161.0,9e-07]
[1728005725221,0.61990598,61162.0,61161.0,9e-07]
[1728005725451,0.66996607,61162.0,61161.0,9e-07]
[1728005725666,0.65596607,61162.0,61161.0,9e-07]
[1728005726356,0.61990598,61162.0,61161.0,9e-07]
[1728005726810,0.60990598,61162.0,61161.0,9e-07]
[1728005727039,0.51183981,61162.0,61161.0,9e-07]
[1728005727272,0.50783981,61162.0,61161.0,9e-07]
[1728005727740,0.52183981,61162.0,61161.0,9e-07]
[1728005728258,0.38196981,61162.0,61161.0,9e-07]
[1728005728494,0.48753429,61162.0,61161.0,9e-07]
[1728005728728,0.47353429,61162.0,61161.0,9e-07]
[1728005728960,0.47166429,61162.0,61161.0,9e-07]
[1728005729203,0.48566429,61162.0,61161.0,9e-07]
[1728005729446,0.61053429,61162.0,61161.0,9e-07]
[1728005729667,0.59653429,61162.0,61161.0,9e-07]
[1728005730144,0.89714263,61162.0,61161.0,9e-07]
[1728005730376,0.86914263,61162.0,61161.0,9e-07]
[1728005730789,0.90214263,61162.0,61161.0,9e-07]
[1728005731241,0.88814263,61162.0,61161.0,9e-07]
[1728005731491,1.13440272,61162.0,61161.0,9e-07]
[1728005731728,1.08434263,61162.0,61161.0,9e-07]
[1728005732210,0.91214263,61162.0,61161.0,9e-07]
[1728005732894,0.96357884,61162.0,61161.0,9e-07]
[1728005733831,0.91214263,61162.0,61161.0,9e-07]
[1728005734290,0.89714263,61162.0,61161.0,9e-07]
[1728005734556,0.91214263,61162.0,61161.0,9e-07]
[1728005735496,0.90214263,61162.0,61161.0,9e-07]
[1728005736480,0.60866429,61162.0,61161.0,9e-07]
[1728005736982,0.58489119,61162.0,61161.0,9e-07]
[1728005738469,0.87149953,61162.0,61161.0,9e-07]
[1728005740170,0.89713876,61162.0,61161.0,9e-07]
[1728005740415,0.89526876,61162.0,61161.0,9e-07]
[1728005740911,0.60866042,61162.0,61161.0,9e-07]
[1728005741414,0.58566042,61162.0,61161.0,9e-07]
[1728005743536,0.58753042,61162.0,61161.0,9e-07]
[1728005744003,0.38196594,61162.0,61161.0,9e-07]
[1728005744977,0.38196594,61162.0,61161.0,0.1749009]
[1728005745687,0.35396594,61162.0,61161.0,0.1749009]
[1728005745919,0.36796594,61162.0,61161.0,0.1749009]
[1728005746433,0.42832671,61162.0,61161.0,0.1749009]
[1728005746664,0.44232671,61162.0,61161.0,0.1749009]
[1728005746909,0.45632671,61162.0,61161.0,0.1749009]
[1728005747786,0.35632671,61162.0,61161.0,0.1749009]
[1728005748962,0.49005448,61162.0,61161.0,0.1749009]
[1728005749671,0.51568968,61162.0,61161.0,0.1749009]
[1728005750389,0.51755968,61162.0,61161.0,0.1749009]
[1728005750849,0.51755968,61162.0,61161.0,9e-07]
[1728005750850,0.61755968,61162.0,61161.0,9e-07]
[1728005751076,0.74005484,61162.0,61161.0,9e-07]
[1728005751313,0.61755968,61162.0,61161.0,9e-07]
[1728005752251,0.93274959,61162.0,61161.0,9e-07]
[1728005752472,0.64555968,61162.0,61161.0,9e-07]
[1728005752702,0.79236282,61162.0,61161.0,9e-07]
[1728005754823,0.77836282,61162.0,61161.0,9e-07]
[1728005755052,0.79236282,61162.0,61161.0,9e-07]
[1728005755308,0.77836282,61162.0,61161.0,9e-07]
[1728005755768,0.79236282,61162.0,61161.0,9e-07]
[1728005756221,0.76249282,61162.0,61161.0,9e-07]
[1728005756441,0.50596191,61162.0,61161.0,9e-07]
[1728005756927,0.48119671,61162.0,61161.0,9e-07]
[1728005757670,0.48619671,61162.0,61161.0,9e-07]
[1728005757910,0.63323362,61162.0,61161.0,9e-07]
[1728005758140,0.64938342,61162.0,61161.0,9e-07]
[1728005758386,0.98699994,61162.0,61161.0,9e-07]
[1728005759375,0.83158342,61162.0,61161.0,9e-07]
[1728005760357,0.85722513,61162.0,61161.0,9e-07]
[1728005761296,0.83158342,61162.0,61161.0,9e-07]
[1728005763139,0.65938342,61162.0,61161.0,9e-07]
[1728005763367,0.82480185,61162.0,61161.0,9e-07]
[1728005763592,0.82481208,61162.0,61161.0,9e-07]
[1728005763826,0.65938342,61162.0,61161.0,9e-07]
[1728005764270,0.68502455,61162.0,61161.0,9e-07]
[1728005766591,0.85722455,61162.0,61161.0,9e-07]
[1728005767060,0.83158342,61162.0,61161.0,9e-07]
[1728005769659,0.83583102,61162.0,61161.0,9e-07]
[1728005770318,0.86147363,61162.0,61161.0,9e-07]
[1728005771224,0.83583102,61162.0,61161.0,9e-07]
[1728005771672,1.0273547,61162.0,61161.0,9e-07]
[1728005774389,0.67103852,61162.0,61161.0,9e-07]
[1728005774814,0.64703852,61162.0,61161.0,9e-07]
[1728005775049,0.66103852,61162.0,61161.0,9e-07]
[1728005775536,0.64703852,61162.0,61161.0,9e-07]
[1728005775770,0.66103852,61162.0,61161.0,9e-07]
[1728005775998,0.84322523,61162.0,61161.0,9e-07]
[1728005776215,1.02474891,61162.0,61161.0,9e-07]
[1728005776694,0.65415523,61162.0,61161.0,9e-07]
[1728005776921,0.65415523,61162.0,61161.0,0.0804009]
[1728005776922,0.35632671,61162.0,61161.0,0.0804009]
[1728005777138,0.42983215,61162.0,61161.0,0.0804009]
[1728005777358,0.34232671,61162.0,61161.0,0.0804009]
[1728005777572,0.35632671,61162.0,61161.0,0.0804009]
[1728005777819,0.68491649,61162.0,61161.0,0.0804009]
[1728005778040,0.68491649,61162.0,61161.0,9e-07]
[1728005778041,0.67778649,61162.0,61161.0,9e-07]
[1728005778323,0.69178649,61162.0,61161.0,9e-07]
[1728005778503,0.81478649,61162.0,61161.0,9e-07]
[1728005778748,0.82878649,61162.0,61161.0,9e-07]
[1728005779005,0.62139281,61162.0,61161.0,9e-07]
[1728005779242,0.56483081,61162.0,61161.0,9e-07]
[1728005779482,0.55432596,61162.0,61161.0,0.0809009]
[1728005779715,0.44232671,61162.0,61161.0,0.0809009]
[1728005779946,0.45632671,61162.0,61161.0,0.0809009]
[1728005780178,0.47196285,61162.0,61161.0,0.0809009]
[1728005780449,0.09446285,61162.0,61161.0,0.1750009]
[1728005780720,0.32668671,61162.0,61161.0,0.1751309]
[1728005780932,0.34068671,61162.0,61161.0,0.1750009]
[1728005781367,0.32668671,61162.0,61161.0,0.1750009]
[1728005781606,0.35468671,61162.0,61161.0,0.1750009]
[1728005782079,0.34068671,61162.0,61161.0,0.1750009]
[1728005782295,0.34868671,61162.0,61161.0,0.1750009]
[1728005782749,0.34068671,61162.0,61161.0,0.1750009]
[1728005783008,0.34868671,61162.0,61161.0,0.1750009]
[1728005783480,0.36032131,61162.0,61161.0,0.1750009]
[1728005783716,0.61198359,61162.0,61161.0,0.1750009]
[1728005783978,0.73485284,61162.0,61161.0,9e-07]
[1728005784229,0.61885359,61162.0,61161.0,9e-07]
[1728005784493,0.62985359,61162.0,61161.0,9e-07]
[1728005784933,0.61985359,61162.0,61161.0,9e-07]
[1728005785175,0.61898359,61162.0,61161.0,0.0010009]
[1728005785399,0.75442916,61162.0,61161.0,9e-07]
[1728005785621,0.49132131,61162.0,61161.0,0.0010009]
[1728005785841,0.49032131,61162.0,61161.0,9e-07]
[1728005786058,0.61276688,61162.0,61161.0,9e-07]
[1728005786272,0.61463688,61162.0,61161.0,9e-07]
[1728005786483,0.59876688,61162.0,61161.0,9e-07]
[1728005786695,0.47632131,61162.0,61161.0,9e-07]
[1728005786938,0.36732131,61162.0,61161.0,9e-07]
[1728005787163,0.36732131,61162.0,61161.0,0.0809009]
[1728005787164,0.34168671,61162.0,61161.0,0.0809009]
[1728005787390,0.34168671,61162.0,61161.0,0.1760009]
[1728005787611,0.35568671,61162.0,61161.0,0.1760009]
[1728005788101,0.34168671,61162.0,61161.0,0.1760009]
[1728005788353,0.32668671,61162.0,61161.0,0.1750009]
[1728005788565,0.35468671,61162.0,61161.0,0.1760009]
[1728005788777,0.35468671,61162.0,61161.0,0.1750009]
[1728005788778,0.34068671,61162.0,61161.0,0.1750009]
[1728005788992,0.34068671,61162.0,61161.0,0.1760009]
[1728005789200,0.35268671,61162.0,61161.0,0.1760009]
[1728005789428,0.34068671,61162.0,61161.0,0.1750009]
[1728005789705,0.34232671,61162.0,61161.0,0.1750009]
[1728005789952,0.42832671,61162.0,61161.0,9e-07]
[1728005790186,0.54026059,61162.0,61161.0,9e-07]
[1728005790420,0.44232671,61162.0,61161.0,9e-07]
[1728005790642,0.72980077,61162.0,61161.0,0.0010009]
[1728005790884,0.63038342,61162.0,61161.0,0.0010009]
[1728005791128,0.46532671,61162.0,61161.0,9e-07]
[1728005791365,0.59975162,61162.0,61161.0,0.0010009]
[1728005791578,0.45319671,61162.0,61161.0,9e-07]
[1728005791802,0.58775922,61162.0,61161.0,9e-07]
[1728005792070,0.58775922,61162.0,61161.0,0.0010009]
[1728005792071,0.55427173,61162.0,61161.0,0.0010009]
[1728005792306,0.45632671,61162.0,61161.0,9e-07]
[1728005792543,0.60358003,61162.0,61161.0,0.0010009]
[1728005792767,0.47032671,61162.0,61161.0,0.0010009]
[1728005793230,0.45632671,61162.0,61161.0,0.0010009]
[1728005793505,0.37032671,61162.0,61161.0,0.0010009]
[1728005793740,0.34232671,61162.0,61161.0,0.1750009]
[1728005794187,0.35632671,61162.0,61161.0,0.1750009]
[1728005794402,0.36796148,61162.0,61161.0,0.1750009]
[1728005794616,0.38096148,61162.0,61161.0,0.1750009]
[1728005794848,0.36696148,61162.0,61161.0,0.1750009]
[1728005795085,0.38096148,61162.0,61161.0,0.1750009]
[1728005795304,0.60892175,61162.0,61161.0,0.1750009]
[1728005795522,0.59779175,61162.0,61161.0,0.1750009]
[1728005795739,0.48096148,61162.0,61161.0,0.1750009]
[1728005797344,0.46796148,61162.0,61161.0,0.1750009]
[1728005797555,0.48196148,61162.0,61161.0,0.1750009]
[1728005800924,0.48383148,61162.0,61161.0,9e-07]
[1728005801368,0.50683148,61162.0,61161.0,9e-07]
[1728005802301,0.49283148,61162.0,61161.0,9e-07]
[1728005802540,0.51183148,61162.0,61161.0,9e-07]
[1728005803012,0.49783148,61162.0,61161.0,9e-07]
[1728005803467,0.68403148,61162.0,61161.0,9e-07]
[1728005803675,0.84721819,61162.0,61161.0,9e-07]
[1728005803972,0.66101819,61162.0,61161.0,9e-07]
[1728005804202,0.66515103,61162.0,61161.0,9e-07]
[1728005804438,0.67915103,61162.0,61161.0,9e-07]
[1728005804673,0.66515103,61162.0,61161.0,9e-07]
[1728005804908,0.67915103,61162.0,61161.0,9e-07]
[1728005805178,0.68915103,61162.0,61161.0,9e-07]
[1728005805931,0.52596432,61162.0,61161.0,9e-07]
[1728005807321,0.50032955,61162.0,61161.0,9e-07]
[1728005808507,0.193391,61154.0,61153.0,0.21197814]
[1728005808737,0.163545,61145.0,61143.0,0.24468224]
[1728005808989,0.34973171,61145.0,61143.0,0.24468224]
[1728005809220,0.35160171,61145.0,61143.0,0.24468224]
[1728005809455,0.46397697,61145.0,61141.0,0.0002]
[1728005809681,0.46210697,61145.0,61141.0,0.0002]
[1728005809880,0.56210697,61145.0,61141.0,0.0002]
[1728005810516,0.57610697,61145.0,61141.0,0.0002]
[1728005811201,0.57797697,61145.0,61141.0,0.0002]
[1728005811661,0.59197697,61145.0,61141.0,0.0002]
[1728005812361,0.57797697,61145.0,61141.0,0.0002]
[1728005812832,0.59197697,61145.0,61141.0,0.0002]
[1728005813324,0.56397697,61145.0,61141.0,0.0002]
[1728005813568,0.60362191,61145.0,61141.0,0.0002]
[1728005813815,0.61762191,61145.0,61141.0,0.0002]
[1728005814037,0.60362191,61145.0,61141.0,0.0002]
[1728005814285,0.61762191,61145.0,61141.0,0.0002]
[1728005814524,0.60862191,61145.0,61141.0,0.0002]
[1728005815170,0.62262191,61145.0,61141.0,0.0002]
[1728005815914,0.50337665,61145.0,61141.0,0.0002]
[1728005816400,0.47960171,61145.0,61141.0,0.0002]
[1728005816621,0.47773171,61145.0,61141.0,0.0002]
[1728005817294,0.47960171,61145.0,61141.0,0.0002]
[1728005819548,0.47773171,61145.0,61141.0,0.0002]
[1728005819549,0.50337648,61145.0,61141.0,0.0002]
[1728005819796,0.53690769,61145.0,61141.0,0.0002]
[1728005820776,0.51126292,61145.0,61141.0,0.0002]
[1728005823682,0.53690713,61145.0,61141.0,0.0002]
[1728005826861,0.51126292,61145.0,61141.0,0.0002]
[1728005827596,0.47773171,61145.0,61141.0,0.0002]
[1728005830329,0.50337573,61145.0,61141.0,0.0002]
[1728005830907,0.48037573,61145.0,61141.0,0.0002]
[1728005831084,0.38037573,61145.0,61144.0,0.17214]
[1728005831334,0.21683073,61145.0,61144.0,0.17214]
[1728005831587,0.327041,61155.0,61150.0,0.00013]
[1728005831588,0.163531,61151.0,61150.0,0.00013]
[1728005831834,0.32671771,61151.0,61150.0,0.17063]
[1728005832079,0.16318671,61151.0,61150.0,0.17063]
[1728005832556,0.32671571,61151.0,61150.0,0.1705]
[1728005832986,0.16318671,61151.0,61150.0,0.17063]
[1728005833212,0.33171571,61151.0,61150.0,0.17063]
[1728005833447,0.163524,61153.0,61152.0,0.00013]
[1728005833679,0.32671071,61153.0,61152.0,0.00013]
[1728005833916,0.16318671,61153.0,61152.0,0.00013]
[1728005834657,0.02563757,61158.0,61153.0,0.0782]
[1728005834921,0.16318671,61158.0,61157.0,0.43323468]
[1728005835163,0.16318671,61158.0,61157.0,0.26972368]
[1728005835412,0.00164,61162.0,61157.0,0.26972368]
[1728005835669,0.00164,61162.0,61161.0,0.35502568]
[1728005835931,1.04158624,61180.0,61167.0,0.0782]
[1728005835932,0.326936,61174.0,61167.0,0.0782]
[1728005836188,1.04158624,61180.0,61155.0,0.24468224]
[1728005836189,0.16318671,61172.0,61169.0,0.0782]
[1728005836436,0.02563143,61178.0,61173.0,0.16347]
[1728005836437,0.163458,61178.0,61173.0,0.16347]
[1728005836686,0.163458,61178.0,61177.0,0.19152368]
[1728005836687,0.16318671,61178.0,61177.0,0.19152368]
[1728005837174,0.16318671,61178.0,61177.0,0.36215368]
[1728005837408,0.32664371,61178.0,61177.0,0.36215368]
[1728005837657,0.32664371,61178.0,61177.0,0.1705]
[1728005838177,0.32664371,61178.0,61177.0,0.17063]
[1728005838413,0.32664371,61178.0,61177.0,0.1715]
[1728005838663,0.33464371,61178.0,61177.0,0.1715]
[1728005838899,0.33464371,61178.0,61177.0,0.1705]
[1728005839153,0.32664371,61178.0,61177.0,0.1715]
[1728005839389,0.34064371,61178.0,61177.0,0.1725]
[1728005839624,0.34064371,61178.0,61177.0,0.1715]
[1728005839865,0.34664371,61178.0,61177.0,0.1725]
[1728005840103,0.33264371,61178.0,61177.0,0.1725]
[1728005840339,0.32664371,61178.0,61177.0,0.1715]
[1728005840572,0.34064371,61178.0,61177.0,0.1715]
[1728005840822,0.35164371,61178.0,61177.0,0.1725]
[1728005841824,0.32664371,61178.0,61177.0,0.1705]
[1728005842372,0.33864371,61178.0,61177.0,0.1715]
[1728005842561,0.35264371,61178.0,61177.0,0.1725]
[1728005843056,0.17518671,61178.0,61177.0,0.17163]
[1728005843285,0.026,61178.0,61177.0,0.17263]
[1728005843514,0.026,61178.0,61177.0,0.33609]
[1728005844670,0.000819,61184.0,61183.0,0.43006768]
[1728005844911,0.000819,61184.0,61183.0,0.52666768]
[1728005845376,0.000819,61184.0,61183.0,0.36322368]
[1728005846587,0.32744671,61184.0,61183.0,0.1717]
[1728005846816,0.32744671,61184.0,61183.0,0.0751]
[1728005847061,0.33044671,61184.0,61183.0,0.0751]
[1728005847332,0.33044671,61184.0,61183.0,0.26662368]
[1728005847333,0.003819,61184.0,61183.0,0.26662368]
[1728005847566,0.003819,61184.0,61183.0,0.52666768]
[1728005847819,0.003819,61184.0,61183.0,0.36322368]
[1728005848315,0.003819,61184.0,61183.0,0.36435368]
[1728005848500,0.32744671,61184.0,61183.0,0.1727]
[1728005848741,0.32744671,61184.0,61183.0,0.0751]
[1728005848952,0.32744671,61184.0,61183.0,0.0761]
[1728005849162,0.32744671,61184.0,61183.0,0.0751]
[1728005849399,0.32744671,61184.0,61183.0,0.26662368]
[1728005849400,0.16400571,61184.0,61183.0,0.26662368]
[1728005849609,0.16400571,61184.0,61183.0,0.52766768]
[1728005849610,0.000819,61184.0,61183.0,0.52766768]
[1728005849863,0.000819,61184.0,61183.0,0.52679768]
[1728005850110,0.000819,61184.0,61183.0,0.52779768]
[1728005850775,0.000819,61184.0,61183.0,0.36535368]
[1728005850998,0.000819,61184.0,61183.0,0.52879768]
[1728005851228,0.000819,61184.0,61183.0,0.52779768]
[1728005851475,0.000819,61184.0,61183.0,0.52679768]
[1728005852151,0.000819,61184.0,61183.0,0.36335368]
[1728005852604,0.000819,61184.0,61183.0,0.52679768]
[1728005852832,0.000819,61184.0,61183.0,0.52779768]
[1728005854202,0.001819,61184.0,61183.0,0.52779768]
[1728005854421,0.001819,61184.0,61183.0,0.52679768]
[1728005854656,0.001819,61184.0,61183.0,0.52879768]
[1728005854657,0.000819,61184.0,61183.0,0.52879768]
[1728005854861,0.24468224,61195.0,61194.0,0.00013]
[1728005855308,0.001638,61215.0,61203.0,0.00013]
[1728005855525,0.001638,61215.0,61201.0,0.0761]
[1728005855526,0.001638,61215.0,61211.0,0.00013]
[1728005855527,0.40804824,61212.0,61211.0,0.00013]
[1728005855974,0.163366,61212.0,61211.0,0.07623]
[1728005856453,0.001638,61215.0,61213.0,0.00013]
[1728005856660,0.001638,61215.0,61211.0,0.26762368]
[1728005856661,0.001638,61215.0,61212.0,0.00013]
[1728005856868,0.163363,61213.0,61212.0,0.00013]
[1728005858484,0.164363,61213.0,61212.0,0.00113]
[1728005858935,0.164997,61215.0,61214.0,0.00013]
[1728005859188,0.001638,61215.0,61214.0,0.28663722]
[1728005859419,0.001638,61215.0,61214.0,0.38323722]
[1728005860346,0.164996,61215.0,61214.0,0.38323722]
[1728005860589,0.164996,61215.0,61212.0,0.001]
[1728005860590,0.163363,61213.0,61212.0,0.001]
[1728005860855,0.163363,61213.0,61205.0,0.00013]
[1728005860856,0.163382,61206.0,61205.0,0.00013]
[1728005861088,0.32656871,61206.0,61205.0,0.00013]
[1728005861330,0.163385,61205.0,61204.0,0.0761]
[1728005861588,0.32675,61209.0,61204.0,0.07623]
[1728005861831,0.32675,61209.0,61205.0,0.00013]
[1728005861832,0.163382,61206.0,61205.0,0.00013]
[1728005862076,0.001638,61215.0,61205.0,0.00013]
[1728005862077,0.001638,61215.0,61205.0,0.00313]
[1728005862320,0.001638,61215.0,61207.0,0.163378]
[1728005862321,0.24468224,61212.0,61207.0,0.163378]
[1728005862564,0.16482471,61215.0,61210.0,0.163371]
[1728005863060,0.001638,61215.0,61214.0,0.28650722]
[1728005863301,0.001638,61215.0,61214.0,0.44986822]
[1728005863541,0.001638,61215.0,61214.0,0.28650722]
[1728005864055,0.163364,61213.0,61211.0,0.1727]
[1728005864509,0.326724,61214.0,61211.0,0.1727]
[1728005864510,0.163366,61212.0,61211.0,0.1727]
[1728005864990,0.163365,61213.0,61211.0,0.1727]
[1728005865225,0.165365,61213.0,61211.0,0.1737]
[1728005865753,0.002,61213.0,61211.0,0.1737]
[1728005866460,0.163362,61214.0,61211.0,0.1737]
[1728005866932,0.002,61212.0,61211.0,0.1747]
[1728005867409,0.163362,61214.0,61211.0,0.1737]
[1728005867884,0.328727,61214.0,61211.0,0.1737]
[1728005868120,0.163364,61213.0,61211.0,0.1747]
[1728005869587,0.163366,61212.0,61211.0,0.1727]
[1728005869822,0.163366,61212.0,61211.0,0.1747]
[1728005870057,0.163366,61212.0,61211.0,0.0781]
[1728005870294,0.32655271,61212.0,61211.0,0.001]
[1728005870780,0.32655271,61212.0,61211.0,0.002]
[1728005871014,0.32655271,61212.0,61211.0,0.001]
[1728005871250,0.48992271,61212.0,61205.0,0.24481224]
[1728005871496,0.163382,61206.0,61205.0,0.00013]
[1728005874115,0.165382,61206.0,61205.0,0.00013]
[1728005874613,0.163385,61205.0,61204.0,0.0774]
[1728005874843,0.002,61206.0,61205.0,0.163385]
[1728005875322,0.002,61206.0,61204.0,0.36390722]
[1728005875788,0.002,61206.0,61204.0,0.36490722]
[1728005876016,0.163385,61205.0,61204.0,0.36490722]
[1728005876269,0.163385,61205.0,61204.0,0.0784]
[1728005876759,0.165385,61205.0,61204.0,0.0784]
[1728005877143,0.165385,61205.0,61204.0,0.001]
[1728005877472,0.002,61205.0,61201.0,0.00013]
[1728005877703,0.163393,61202.0,61201.0,0.00013]
[1728005878194,0.163398,61200.0,61199.0,0.00013]
[1728005878428,0.163398,61200.0,61198.0,0.0774]
[1728005878429,0.16318671,61200.0,61198.0,0.07753]
[1728005878653,0.32658571,61200.0,61198.0,0.07753]
[1728005878885,0.163389,61204.0,61199.0,0.44990722]
[1728005879129,0.326774,61205.0,61199.0,0.44990722]
[1728005879130,0.326774,61205.0,61201.0,0.004]
[1728005879374,0.326774,61205.0,61199.0,0.28650722]
[1728005879375,0.163391,61203.0,61199.0,0.28650722]
[1728005880266,0.326774,61205.0,61199.0,0.44990722]
[1728005880267,0.163388,61204.0,61199.0,0.44990722]
[1728005880502,0.163388,61204.0,61201.0,0.001]
[1728005880759,0.328774,61205.0,61201.0,0.001]
[1728005880760,0.163393,61202.0,61201.0,0.001]
[1728005881010,0.163401,61199.0,61198.0,0.07753]
[1728005881724,0.326774,61205.0,61198.0,0.07753]
[1728005881982,0.000818,61213.0,61204.0,0.19110634]
[1728005881983,0.163374,61210.0,61204.0,0.19110634]
[1728005882260,0.16318671,61209.0,61208.0,0.19110634]
[1728005882510,0.16318671,61209.0,61208.0,0.19123634]
[1728005882721,0.32656071,61209.0,61208.0,0.19123634]
[1728005882954,0.163367,61212.0,61211.0,0.00013]
[1728005883182,0.163371,61210.0,61209.0,0.0774]
[1728005883876,0.000818,61213.0,61209.0,0.0774]
[1728005884131,0.000818,61213.0,61212.0,0.19110634]
[1728005884387,0.000818,61213.0,61212.0,0.35447234]
[1728005884651,0.000818,61213.0,61212.0,0.44747234]
[1728005884882,0.163374,61209.0,61208.0,0.001]
[1728005885113,0.32656071,61209.0,61208.0,0.001]
[1728005885345,0.32656071,61209.0,61204.0,0.24468224]
[1728005885346,0.16318671,61209.0,61204.0,0.00013]
[1728005885574,0.163385,61205.0,61204.0,0.00013]
[1728005885812,0.32657171,61205.0,61204.0,0.00013]
[1728005886058,0.32657171,61205.0,61196.0,0.163407]
[1728005886059,0.16318671,61205.0,61194.0,0.077]
[1728005886272,0.32676,61207.0,61197.0,0.00013]
[1728005886273,0.163404,61198.0,61197.0,0.00013]
[1728005886500,0.163404,61198.0,61194.0,0.077]
[1728005887697,0.163404,61198.0,61194.0,0.240414]
[1728005887940,0.326801,61200.0,61197.0,0.19110634]
[1728005887941,0.1634,61200.0,61197.0,0.19110634]
[1728005888188,0.1634,61200.0,61199.0,0.00013]
[1728005888409,0.1634,61200.0,61197.0,0.19110634]
[1728005888410,0.163404,61198.0,61197.0,0.19123634]
[1728005888676,0.163404,61198.0,61197.0,0.00013]
[1728005889398,0.163404,61198.0,61181.0,0.17190952]
[1728005889399,0.163425,61190.0,61189.0,0.00013]
[1728005889644,0.163428,61189.0,61188.0,0.077]
[1728005889939,0.163428,61189.0,61184.0,0.001636]
[1728005889940,0.16343,61188.0,61187.0,0.00013]
[1728005890151,0.326839,61193.0,61184.0,0.24631824]
[1728005890152,0.163438,61185.0,61184.0,0.001636]
[1728005890393,0.163438,61185.0,61184.0,0.001766]
[1728005891629,0.653678,61193.0,61187.0,0.00013]
[1728005891871,0.163413,61195.0,61191.0,0.00013]
[1728005892097,0.326814,61197.0,61192.0,0.28680745]
[1728005892098,0.16318671,61194.0,61192.0,0.28680745]
[1728005892332,0.326803,61199.0,61192.0,0.28680745]
[1728005892559,0.163408,61197.0,61193.0,0.077]
[1728005892780,0.163408,61197.0,61196.0,0.00013]
[1728005893941,0.163408,61197.0,61193.0,0.077]
[1728005893942,0.163401,61199.0,61198.0,0.00013]
[1728005894171,0.02561801,61205.0,61196.0,0.00013]
[1728005894388,0.02561801,61205.0,61191.0,0.00013]
[1728005894389,0.326812,61198.0,61191.0,0.00013]
[1728005894609,0.16342,61192.0,61191.0,0.24481224]
[1728005894829,0.16342,61192.0,61191.0,0.00013]
[1728005895065,0.005,61199.0,61191.0,0.00013]
[1728005895309,0.24468224,61198.0,61191.0,0.00013]
[1728005895543,0.24468224,61198.0,61188.0,0.326858]
[1728005895544,0.40808624,61198.0,61197.0,0.00013]